Cogmind - Beta 14 @@@ ROGUE MODE // 2024.11.17 @ 12:17:23 Player: Hinzy Result: Destroyed by Autobeam Turret with Autobeam Performance ------------- Evolutions (0) 0 Regions Visited (3) 600 Robots Destroyed (21) 105 Value Destroyed (493) 493 Prototype IDs (0) 0 Alien Tech Used (0) 0 Bonus (0) 0 TOTAL SCORE: 1198 Bonus ------- None Cogmind --------- Core Integrity 0/250 Matter 230/300 Energy 198/200 System Corruption 0% Temperature Cool (12) Movement Rolling (110) Location -10/Subcaves Parts ------- > --- POWER (1) -------- Subdweller Power Source > --- PROPULSION (2) --- Subdweller Monowheel Subdweller Monowheel > --- UTILITY (2) ------ Medium Storage Unit Improved Terrain Scanner > --- WEAPON (2) ------- Subdweller Laser Beamcaster > --- INVENTORY (10) --- Subdweller Power Source Subdweller Power Source Subdweller Monowheel Subdweller Monowheel Disposable Heat Sink Subdweller Laser Battle Rifle Subdweller Machine Gun Peak State ------------ > --- POWER ------------ Subdweller Power Source > --- PROPULSION ------- Subdweller Monowheel Subdweller Monowheel > --- UTILITY ---------- Medium Storage Unit Improved Terrain Scanner > --- WEAPON ----------- Subdweller Laser Beamcaster > --- INVENTORY -------- Subdweller Power Source Subdweller Power Source Subdweller Monowheel Subdweller Monowheel Disposable Heat Sink Subdweller Laser Battle Rifle Subdweller Machine Gun [Rating: 18] Favorites ----------- Power Light Ion Engine Engine Light Ion Engine Propulsion Flight Unit Leg Aluminum Leg Wheel Subdweller Monowheel Flight Unit Flight Unit Utility Seismic Detector Device Seismic Detector Storage Small Storage Unit Weapon Grenade Launcher Energy Gun Subdweller Laser Energy Cannon Beam Cannon Ballistic Gun Assault Rifle Launcher Grenade Launcher Build | -11 -10 -10 -10 ------- Run | Yrd Mat Min Sub Slots Evolved . | . . . . Power . | . . . . Propulsion . | . . . . Utility . | . . . . Weapon . | . . . . Parts Attached 27 | 3 3 6 15 Power 3 | . . 1 2 Engine 3 | . . 1 2 Core . | . . . . Reactor . | . . . . Propulsion 11 | . 2 2 7 Treads . | . . . . Leg 1 | . . . 1 Wheel 7 | . 1 . 6 Hover . | . . . . Flight 3 | . 1 2 . Utility 5 | 2 . 1 2 Device 4 | 2 . 1 1 Storage 1 | . . . 1 Processor . | . . . . Hackware . | . . . . Protection . | . . . . Artifact . | . . . . Weapon 8 | 1 1 2 4 Energy Gun 4 | 1 . . 3 Energy Cannon 2 | . 1 1 . Ballistic Gun 1 | . . . 1 Ballistic Cannon . | . . . . Launcher 1 | . . 1 . Special Weapon . | . . . . Impact Weapon . | . . . . Slashing Weapon . | . . . . Piercing Weapon . | . . . . Special Melee Weapon . | . . . . Unidentified Prototypes . | . . . . Parts Lost 6 | . . . 6 Power 1 | . . . 1 Propulsion 2 | . . . 2 Utility 1 | . . . 1 Weapon 2 | . . . 2 Highest Loss Streak 4 | . . . 4 To Critical Strikes . | . . . . Average Slot Usage (%) 88 | . 89 83 94 Engine 13 | . 14 13 14 Leg 3 | . 7 . 6 Wheel 8 | . 10 1 16 Flight 15 | . 10 26 4 Device 22 | . 14 24 23 Storage 1 | . 3 . 3 Energy Gun 5 | . 8 . 11 Energy Cannon 1 | . 5 2 . Ballistic Gun 4 | . 14 . 5 Launcher 9 | . . 13 8 Peak Build Rating 18 | 9 7 9 18 Average Rating 9 | 6 6 7 12 On Entrance 7 | 6 7 6 9 Naked Turns . | . . . . Heaviest Build 25 | 15 15 12 25 Greatest Support 40 | 20 20 10 40 Greatest Overweight (x) 1 | . 1 1 1 Average Overweight (x) . | . . . . Largest Inventory Capacity 10 | 8 8 5 10 Average Capacity 5 | 8 5 5 6 Most Carried 9 | 6 7 5 9 Average Carried 5 | 5 5 4 5 Final Capacity 10 | 8 5 5 10 Final Carried 8 | 6 5 5 8 Class Distribution -------------------- 68% | Scavenger-Mutant 31% | Mutant Dominant Class ---------------- Mutant | -10/Materials Scavenger-Mutant | -10/Mines Scavenger-Mutant | -10/Subcaves Resources | -11 -10 -10 -10 ----------- Run | Yrd Mat Min Sub Matter Collected 700 | 244 32 177 247 Remotely . | . . . . Salvage Created 577 | 96 81 120 280 Parts 41 | 12 4 5 20 Haulers Intercepted . | . . . . Recyclers Shooed 1 | . . 1 . Parts Field Recycled . | . . . . Retrieved Matter . | . . . . Parts Self-Destructed 8 | . . . 8 Prevented . | . . . . Kills | -11 -10 -10 -10 ------- Run | Yrd Mat Min Sub Combat Hostiles Destroyed 17 | . 2 5 10 Guns 6 | . 1 . 5 Cannons 1 | . 1 . . AOE 10 | . . 5 5 Classes Destroyed 6 | 1 1 3 1 Tunneler 5 | 5 . . . Recycler 1 | . . 1 . Swarmer 5 | . . 3 2 Grunt 4 | . 2 . 2 Subdweller 6 | . . . 6 Assembled 2 | . . 2 . Best Kill Streak 3 | 3 2 3 3 Combat Bots Only 3 | . 2 3 3 Max Kills in Single Turn 2 | 1 1 2 1 Gunslinging . | . . . . Exploded 2 | . . 2 1 Melee . | . . . . Uniques/NPCs Destroyed . | . . . . Combat | -11 -10 -10 -10 -------- Run | Yrd Mat Min Sub Hostile Shots Fired 72 | . 14 6 52 Missed 23 | . 4 2 17 Damage Taken 732 | . 147 45 540 Core 254 | . 45 12 197 Absorbed by Shields . | . . . . Core Remaining (%) 100 | 100 . . . Volleys Fired 58 | 12 9 11 26 Largest 2 | 2 2 1 2 Hottest 85 | 70 80 60 85 Shots Fired 78 | 16 18 11 33 Gun 41 | 16 9 . 16 Cannon 13 | . 9 4 . Launcher 24 | . . 7 17 Special . | . . . . Kinetic 30 | 12 9 . 9 Thermal 24 | 4 9 4 7 Explosive 24 | . . 7 17 Electromagnetic . | . . . . Robot Hit Streak 14 | 5 11 13 14 Robot Miss Streak 5 | 1 5 1 5 Penetration Max . | . . . . Secondary Targets 1 | . . . 1 Max Gunslinging Chain 1 | . . . 1 Shots Hit Robots 39 | 10 12 4 13 Core Hits 34 | 5 4 7 18 Critical Kills . | . . . . Critical Parts Destroyed . | . . . . Critical Strikes . | . . . . Melee Attacks . | . . . . Impact . | . . . . Slashing . | . . . . Piercing . | . . . . Sneak Attacks . | . . . . Combat Hostiles . | . . . . Follow-up Attacks . | . . . . Damage Inflicted 1356 | 141 188 294 733 Guns 371 | 141 65 . 165 Cannons 176 | . 123 53 . Explosions 809 | . . 241 568 Melee . | . . . . Ramming . | . . . . Kinetic 269 | 104 65 . 100 Thermal 278 | 37 123 53 65 Explosive 809 | . . 241 568 Electromagnetic . | . . . . Impact . | . . . . Slashing . | . . . . Piercing . | . . . . Highest Corruption . | . . . . Average Corruption . | . . . . Corruption Purged . | . . . . Corruption Blocked . | . . . . Overload Shots . | . . . . Overflow Damage 6 | . . 6 . Projectiles 6 | . . 6 . Explosions . | . . . . Melee . | . . . . Knockbacks . | . . . . Impact . | . . . . Kinetic . | . . . . Secondary . | . . . . Self-Inflicted Damage 75 | . . . 75 Shots 3 | . . . 3 Rammed . | . . . . Targets Rammed . | . . . . Kicked . | . . . . Crushed . | . . . . Highest Temperature 229 | 18 229 56 10 Average Temperature 66 | 8 120 24 3 Received Heat Transfer 228 | . 105 . 123 Siege Activations . | . . . . Robots Corrupted . | . . . . Combat Hostiles . | . . . . Parts Fried . | . . . . Impact Corruptions . | . . . . Robots Melted . | . . . . Combat Hostiles . | . . . . Parts Melted 1 | . 1 . . Heat Transferred 556 | 111 259 111 75 Parts Sabotaged . | . . . . Parts Stolen . | . . . . Parts Stripped . | . . . . Power Chain Reactions . | . . . . Alert | -11 -10 -10 -10 ------- Run | Yrd Mat Min Sub Peak Influence 173 | 25 97 173 . Initial 37 | . 16 37 . Average 82 | 10 43 112 . Maximum Alert Level . | . . . . Low Security (%) 100 | 100 100 100 . Level 1 . | . . . . Level 2 . | . . . . Level 3 . | . . . . Level 4 . | . . . . Level 5 . | . . . . High Security . | . . . . Max Security . | . . . . Squads Dispatched 1 | . 1 . . Investigation 1 | . 1 . . Extermination . | . . . . Reinforcement . | . . . . Assault . | . . . . Garrison . | . . . . Intercept . | . . . . Searches Triggered . | . . . . Construction Impeded . | . . . . Haulers Reinforced . | . . . . Active Scanning Responses . | . . . . Cargo Convoy Interrupts . | . . . . Stealth | -11 -10 -10 -10 --------- Run | Yrd Mat Min Sub Distress Signals . | . . . . Communications Jammed . | . . . . Distress Signals . | . . . . Times Spotted 25 | . 2 5 18 Peak Tracking Total 8 | . 2 3 8 Tactical Retreats 4 | . . . 4 Traps | -11 -10 -10 -10 ------- Run | Yrd Mat Min Sub Traps Triggered 1 | . 1 . . Indirectly . | . . . . Trap Hack Attempts . | . . . . Triggered . | . . . . Disarmed . | . . . . Reprogrammed . | . . . . Reused . | . . . . Traps Extracted . | . . . . Installed . | . . . . Triggered . | . . . . Machines | -11 -10 -10 -10 ---------- Run | Yrd Mat Min Sub Machines Disabled . | . . . . Max in Single Turn . | . . . . Machines Repaired . | . . . . Machines Dismantled . | . . . . Machines Sabotaged . | . . . . Overloaded Fab Kills . | . . . . Hacking | -11 -10 -10 -10 --------- Run | Yrd Mat Min Sub Machines Accessed 3 | . 3 . . Terminals 3 | . 3 . . Fabricators . | . . . . Repair Stations . | . . . . Recycling Units . | . . . . Scanalyzers . | . . . . Garrison Access . | . . . . Total Hacks 6 | . 6 . . Successful 3 | . 3 . . Failed 3 | . 3 . . Catastrophic . | . . . . Database Lockouts . | . . . . Manual 6 | . 6 . . Terminals 6 | . 6 . . Fabricators . | . . . . Repair Stations . | . . . . Recycling Units . | . . . . Scanalyzers . | . . . . Garrison Access . | . . . . Terminal Hacks . | . . . . Fabricator Hacks . | . . . . Repair Station Hacks . | . . . . Recycling Unit Hacks . | . . . . Scanalyzer . | . . . . Garrison Access Hacks . | . . . . Unauthorized Hacks 3 | . 3 . . Terminals 3 | . 3 . . Botnet 2 | . 2 . . Skim 1 | . 1 . . Fabricators . | . . . . Repair Stations . | . . . . Recycling Units . | . . . . Scanalyzers . | . . . . Garrison Access . | . . . . Data Cores Recovered . | . . . . Used . | . . . . Hacking Detections 3 | . 3 . . Full Trace Events . | . . . . Feedback Events . | . . . . Feedback Blocked . | . . . . Robot Schematics Acquired . | . . . . Robots Built . | . . . . Authchips . | . . . . Time . | . . . . Total Robot Build Rating . | . . . . Part Schematics Acquired . | . . . . Parts Built . | . . . . Authchips . | . . . . Time . | . . . . Total Part Build Rating . | . . . . Parts Repaired . | . . . . Time . | . . . . Parts Recycled . | . . . . Recycled Matter . | . . . . Retrieved Matter . | . . . . Retrieved Components . | . . . . Parts Scanalyzed . | . . . . Part Schematics Acquired . | . . . . Parts Damaged . | . . . . Bothacking | -11 -10 -10 -10 ------------ Run | Yrd Mat Min Sub Used RIF Installer . | . . . . Robots Hacked . | . . . . Non-combat . | . . . . Combat . | . . . . Robot Hacks Applied . | . . . . Relay Couplers Released . | . . . . Fabnet Peak Effective % . | . . . . Robots Rewired . | . . . . Allies Hacked . | . . . . Hacks Repelled . | . . . . Allies | -11 -10 -10 -10 -------- Run | Yrd Mat Min Sub Total Allies . | . . . . Largest Group . | . . . . Highest-Rated Group . | . . . . Highest-Rated Ally . | . . . . Total Orders . | . . . . Ally Attacks . | . . . . Total Damage . | . . . . Kills . | . . . . Allies Corrupted . | . . . . Allies Melted . | . . . . Intel | -11 -10 -10 -10 ------- Run | Yrd Mat Min Sub Robot Analysis Total . | . . . . Derelict Logs Recovered . | . . . . Drone Launches . | . . . . Drone Recoveries . | . . . . Exploration | -11 -10 -10 -10 ------------- Run | Yrd Mat Min Sub Turns Passed 1145 | 116 146 472 411 Spaces Moved 850 | 25 120 369 336 Core . | . . . . Treads . | . . . . Legs 60 | 25 24 . 11 Wheels 381 | . 96 44 241 Hover . | . . . . Flight 409 | . . 325 84 Fastest Speed 37 | 120 80 37 37 Average Speed 72 | 120 91 44 92 Slowest Speed 190 | 120 120 117 190 Overloaded Moves . | . . . . Propulsion Burnouts . | . . . . Robots Hopped 2 | . . 2 . Cave-ins Triggered . | . . . . Exploration Rate (%) 24 | 4 24 45 25 Regions Visited 3 Branch Regions 2 Pre-discovered Areas . | . . . . Known Exits Taken . | . . . . Unknown Exits Taken 3 | 1 1 1 . Scrap Searched 1 | . . 1 . Spaces Dug 11 | . . . 11 Terrain Destroyed 124 | . . 49 75 Melee . | . . . . Projectile . | . . . . AOE 124 | . . 49 75 Terrain Rammed . | . . . . Walls Destroyed . | . . . . Machines Disabled . | . . . . Actions | -11 -10 -10 -10 --------- Run | Yrd Mat Min Sub Total 1303 | 94 138 667 404 Wait 333 | 53 . 266 14 Move 843 | 24 119 364 336 Hop 2 | . . 2 . Pick Up 18 | 1 2 8 7 Fast Attach 8 | 1 1 1 5 Attach 8 | 1 . 3 4 Detach 1 | . . . 1 Swap 11 | 1 2 2 6 Drop 21 | 1 5 10 5 Fire 58 | 12 9 11 26 Melee . | . . . . Ram . | . . . . Kick . | . . . . Crush . | . . . . Escape Stasis . | . . . . Rewire . | . . . . Trap . | . . . . Miscellaneous . | . . . . Route ------- -11/Scrapyard -10/Materials -10/Mines -10/Subcaves (discovered 1 exit: [*Rec]) History --------- Turn | Location | Event 1 | -11/Scrapyard | Discovered new exit (range 3) 117 | -11/Scrapyard | Entered Materials 200 | -10/Materials | Discovered new exit (range 15) 263 | -10/Materials | Entered Mines 290 | -10/Mines | Met a Derelict bent on vengeance 310 | -10/Mines | Build established: Mutant 384 | -10/Mines | Assembled infested the area 620 | -10/Mines | Build established: Scavenger-Mutant 722 | -10/Mines | Discovered new exit (range 12) 735 | -10/Mines | Entered Subcaves 767 | -10/Subcaves | Shifting Twisted Machinery released Sub. Laser 798 | -10/Subcaves | Shifting Twisted Machinery released Battle Rifle 883 | -10/Subcaves | Shifting Twisted Machinery released Battle Rifle 885 | -10/Subcaves | Shifting Twisted Machinery released Barrage Gun 917 | -10/Subcaves | Core integrity fell below 50% 984 | -10/Subcaves | Core integrity fell below 20% 1026 | -10/Subcaves | Lost 4 parts (1n1u2w) 1121 | -10/Subcaves | Discovered new exit (range 13) 1146 | -10/Subcaves | Destroyed by Autobeam Turret with Autobeam Last Messages --------------- 01018_ Acquired Disposable Heat Sink. 01022_ Acquired Sub. Machine Gun. 01023_ Acquired 39 matter. 01025_ Acquired Sub. Laser. 01029_ VM-U12(R) destroyed. 01041_ Dropped Sub. Power Source. 01044_ Acquired 35 matter. 01051_ Acquired Sub. Power Source. 01053_ Subatomizers dissect the Sub. Monowheel. 01053_ Acquired Sub. Laser. 01056_ Acquired Sub. Monowheel. 01057_ Acquired 44 matter. 01067_ Acquired 38 matter. 01116_ Sub. Monowheel shoots sparks and powers down. 01121_ EXIT=FOUND 01121_ S-10 Pest springs to life. 01123_ S-10 Pest destroyed. 01142_ Acquired 17 matter. 01144_ Flight Unit fries itself beyond repair. Map ----- +----------------------------------------------------+ | # # ## ####### ## # # " ???? | | #?####### ###### #????? | | ????#??# ???##### ""????? | | ?#????## #?????# ##### ## # ???? | | ????### ####### #?????####????????? | | ?????# & # # ## ##?????????????????? | | ????# ## ## # #####?????#????????????? | | ??#?#########! ## #??##??????????????????? | | ??#??????#?## # ##?????????????????????? | | ??????????## # ## #?????????????????????? | | #?#??????#?## !#### #?????????????????????? | | ???????#???# # ### #????????????????????? | | #????#?????## *& ### #????????????????????? | | ????????????# ##########????????????????????? | | ???????#????# #???#?##?????????????????????? | | ?????#??????##% & #???#?##?#???????????????????? | | ??????????### &########<#####?#???????????????? | | ??????????## =* #"""" """"#?????????????????? | | ??#????????## #" " " "#?????????????????? | | ??????#????## #?? t t "#?????????????????? | | ????????#??# #?? #?????????????????? | | ???#???????### # ???? ?????????????? | | ????????##???# #?? ???????????????????? | | ?????????????# ##??# %#????????????????????? | | ?????????##??# ##??# #????????????????????? | | ??????#??#???### ######@ #????????????????????? | | ???????#?????## # # #????????????????????? | | ????#?#?????## #????????????????????? | | ????#???????# # ## ##???????????????????? | | #??#???????## ######## #????????????????????? | | ??????????### ##??????## ??????????????????? | | ???#????#??# ###?????#? ##??#??????????????? | | ??????????## ##??????????# ##??????????????????? | | ??????????# ##????????????# #?????#?????????????? | | ??#????#?## #??#?????#????? #"??????????????????? | | ?#????#???# #??????#?????#? #???????????????????? | | ??????????## #?????????##??? ???????????????????? | | ???????????###??????????????? ???????????????????? | | ????#????????????????#??#?#??#??#????????????????? | | ?????????#??????????#????????????????????????????? | | ?????????##??????????????????????????????????????? | | ????????????#????????????#??#????????????????????? | | ?????????????????????#???????????????????????????? | | ?????????????????????????????????????????????????? | | ???????????????????#?????????????????????????????? | | ?????????????????????#???????????????????????????? | | ?????????????????????????????????????????????????? | | ?????????????????????????????????????????????????? | | ?????????????????????????????????????????????????? | | ?????????????????????????????????????????????????? | +----------------------------------------------------+ Best States ------------- Heat Dissipation 25 Coolant Potential 50 Energy Generation 15 Energy Capacity 250 Matter Stores 300 Matter Capacity 300 Sight Range 16 Terrain Scan Range 16 Terrain Scan Density 10 Evasion (%) 62 Item Schematics ----------------- None Robot Schematics ------------------ None Fabricated ------------ Nothing Alien Tech Used ----------------- None Achievements -------------- None Challenges ------------ None Game ------ Seed ZioniteGodRedistributor Manual? 0 Play Time 00:16:45 Cumulative 69.4 hours Start 2024.11.17 @ 12:03:04 End 2024.11.17 @ 12:17:23 Sessions 1 Manual Loads 0 Difficulty Rogue Special Mode None Game No. 48 Rogue 48 Adventurer 0 Explorer 0 Win Type - Total 0 Types 0/0/0/0/0/0/0/0/0 Lore% 41 Gallery% 44 Achievement% 33 Wizard Run 0 Options --------- Layout 2 ASCII 0 Keyboard 0 Movement Mouse Keybinds 0 Fullscreen 1 Font 24/Smallcaps Map View 50x44 Zoom Use 0% Tactical HUD 1 Map Filters NONE Filters NONE Steam 1 RUN: bf027599-3b9e-4daf-9339-ad0b28b35a5d